Cogmind - Beta 11 X7 @@@ ROGUE MODE // 2021.09.20 @ 17:02:21 Player: kasaphescent Result: Destroyed by G-67 Veteran with Electrolaser Performance ------------- Evolutions (7) 3500 Regions Visited (27) 5400 Robots Destroyed (272) 1360 Value Destroyed (13882) 13882 Prototype IDs (21) 420 Alien Tech Used (0) 0 Bonus (9863) 9863 TOTAL SCORE: 34425 Bonus ------- High Alert Combat Kills 1937 Follower Combat Kills 4743 Entered Garrisons 1400 Used RIF Installer 3000 Friendly Fire -1217 Cogmind --------- Core Integrity 0/1300 Matter 92/300 Energy 47/100 System Corruption 19% Temperature Cool (0) Movement Treading (165) Location -3/Garrison Parts ------- > --- POWER (1) -------- (None) > --- PROPULSION (4) --- Armored Heavy Treads Centrium Heavy Treads > --- UTILITY (14) ----- Huge Storage Unit Advanced Visual Processing Unit Relay Coupler [Swarmer] (44) Relay Coupler [Brawler] (11) Relay Coupler [Sentry] (1) Relay Coupler [Behemoth] (1) > --- WEAPON (2) ------- Remote Datajack > --- INVENTORY (25) --- Centrium Wheel Remote Force Field Relay Coupler [Demolisher] (28) Relay Coupler [Heavy] (18) Scatter Rocket Array Peak State ------------ > --- POWER ------------ Particle Reactor > --- PROPULSION ------- Armored Heavy Treads Centrium Heavy Treads > --- UTILITY ---------- Huge Storage Unit Advanced Visual Processing Unit Improved Melee Analysis Suite Improved Melee Analysis Suite Centrium Heavy Armor Plating Centrium Heavy Armor Plating Improved Hacking Suite Improved System Shield Improved System Shield Relay Coupler [Swarmer] Relay Coupler [Sentry] Relay Coupler [Behemoth] > --- WEAPON ----------- Power Sword Phasing Sabre > --- INVENTORY -------- Light Particle Reactor Centrium Heavy Treads Centrium Heavy Treads Centrium Wheel Remote Force Field Relay Coupler [Swarmer] Relay Coupler [Brawler] Relay Coupler [Demolisher] Relay Coupler [Heavy] KE Penetrator Railgun Railgun Railgun Improved KE Penetrator Improved KE Penetrator Scatter Rocket Array Scatter Rocket Array Remote Datajack [Rating: 142] Favorites ----------- Power Heavy Antimatter Reactor Engine Improved Deuterium Engine Power Core Light Nuclear Core Reactor Heavy Antimatter Reactor Propulsion Armored Huge Wheel Treads Centrium Heavy Treads Leg Enhanced Armored Leg Wheel Armored Huge Wheel Utility Huge Storage Unit Device Advanced Weight Redist. System Storage Huge Storage Unit Processor Advanced Visual Processing Unit Hackware Relay Coupler [Brawler] Protection Improved Medium Armor Plating Weapon Thunder Hammer Energy Gun Improved EM Shotgun Energy Cannon Light EM Pulse Cannon Ballistic Gun Hypervelocity Coil Gun Ballistic Cannon Gauss Cannon Launcher Mini Grenade Launcher Special Weapon Remote Datajack Impact Weapon Thunder Hammer Slashing Weapon Power Sword Piercing Weapon Enhanced Force Lance Special Melee Weapon Datajack Build | -11 -10 -9 -9 -8 -8 -8 -8 -7 -7 -7 -7 -6 -6 -6 -6 -6 -6 -5 -5 -5 -4 -4 -4 -4 -4 -3 -3 ------- Run | Scr Mat Mat Min Mat Gar Mat Gar Fac Gar Fac Gar Fac Gar Fac Low Low Zio Pro Fac Gar Fac Ext Cet Arc Hub Res Gar Slots Evolved 14 | . . 2 . 2 . . . 2 . . . 2 . . . . . . 2 . 2 . . . . 2 . Power . | . . . . . . . . . . . . . . . . . . . . . . . . . . . . Propulsion 2 | . . . . . . . . . . . . . . . . . . . . . . . . . . 2 . Utility 12 | . . 2 . 2 . . . 2 . . . 2 . . . . . . 2 . 2 . . . . . . Weapon . | . . . . . . . . . . . . . . . . . . . . . . . . . . . . Parts Attached 405 | 6 2 17 . 2 15 3 9 22 24 10 36 10 38 35 2 3 . 12 3 37 21 20 17 11 11 32 7 Power 27 | 1 . . . . 1 . 1 1 3 . 2 1 3 2 . . . 1 . 2 1 . 1 . 1 6 . Engine 6 | 1 . . . . . . . . . . 1 1 3 . . . . . . . . . . . . . . Core 10 | . . . . . 1 . 1 1 3 . 1 . . 1 . . . . . 1 1 . . . . . . Reactor 11 | . . . . . . . . . . . . . . 1 . . . 1 . 1 . . 1 . 1 6 . Propulsion 62 | 2 2 6 . . 2 . 3 2 2 2 4 . 4 8 . . . . . 3 2 2 4 . 6 7 1 Treads 11 | . . . . . . . . . . . . . . 2 . . . . . . . . 3 . 1 4 1 Leg 11 | 2 2 4 . . . . . . 2 . . . 1 . . . . . . . . . . . . . . Wheel 40 | . . 2 . . 2 . 3 2 . 2 4 . 3 6 . . . . . 3 2 2 1 . 5 3 . Hover . | . . . . . . . . . . . . . . . . . . . . . . . . . . . . Flight . | . . . . . . . . . . . . . . . . . . . . . . . . . . . . Utility 133 | 1 . 6 . 2 4 2 2 8 6 5 6 4 8 8 1 1 . 5 2 19 4 13 8 7 4 5 2 Device 13 | . . 1 . 1 2 . . . 1 . . 1 . 2 . . . . . 2 . 1 . 1 1 . . Storage 5 | 1 . 2 . . . . . . . . . . 1 . . . . . . . . . . . . 1 . Processor 7 | . . . . . . . . . . 1 . . . 1 . . . . . 1 . . . . 3 1 . Hackware 56 | . . 1 . . 1 . . 5 4 1 6 1 6 3 1 . . 3 1 7 1 6 2 5 . . 2 Protection 52 | . . 2 . 1 1 2 2 3 1 3 . 2 1 2 . 1 . 2 1 9 3 6 6 1 . 3 . Artifact . | . . . . . . . . . . . . . . . . . . . . . . . . . . . . Weapon 183 | 2 . 5 . . 8 1 3 11 13 3 24 5 23 17 1 2 . 6 1 13 14 5 4 4 . 14 4 Energy Gun 11 | 1 . 3 . . 3 1 1 . 2 . . . . . . . . . . . . . . . . . . Energy Cannon 3 | . . . . . . . 1 2 . . . . . . . . . . . . . . . . . . . Ballistic Gun 48 | 1 . 1 . . 1 . . 3 4 2 13 1 1 3 . . . . . 1 6 . 3 1 . 7 . Ballistic Cannon 21 | . . . . . . . . . . . . 3 9 3 1 . . 3 1 . . 1 . . . . . Launcher 16 | . . 1 . . 2 . 1 2 . . . . 2 3 . . . . . 1 . . . . . 3 1 Special Weapon 52 | . . . . . . . . 3 4 1 9 1 9 5 . 1 . 3 . 6 5 1 . 1 . . 3 Impact Weapon 17 | . . . . . . . . . 3 . 2 . 2 3 . 1 . . . 5 1 . . . . . . Slashing Weapon 12 | . . . . . . . . 1 . . . . . . . . . . . . 2 3 1 2 . 3 . Piercing Weapon 1 | . . . . . . . . . . . . . . . . . . . . . . . . . . 1 . Special Melee Weapon 2 | . . . . . 2 . . . . . . . . . . . . . . . . . . . . . . Unidentified Prototypes 12 | . . 1 . . . . . 1 . 1 . 1 1 2 . . . . . . 1 . 3 . . 1 . Corrupted Parts 5 | . . . . . . . . . . . 1 . . . . . . . . . . . 4 . . . . System Corruption 12 | . . . . . . . . . . . 5 . . . . . . . . . . . 7 . . . . Parts Lost 133 | . . 4 . . 3 2 9 10 7 . 2 2 10 8 . . . 3 . 9 8 14 . 1 5 30 6 Power 15 | . . . . . . . 2 . 1 . . . 3 1 . . . 1 . 1 . . . . 1 4 1 Propulsion 27 | . . 1 . . 2 . 3 2 2 . 2 . 2 2 . . . . . 2 . 2 . . 1 5 1 Utility 58 | . . 1 . . . 2 1 5 3 . . 2 2 2 . . . 2 . 5 6 10 . 1 3 11 2 Weapon 33 | . . 2 . . 1 . 3 3 1 . . . 3 3 . . . . . 1 2 2 . . . 10 2 Highest Loss Streak 10 | . . 3 . . 1 1 3 5 4 . 1 1 5 5 . . . 2 . 3 3 7 . 1 5 10 4 Average Slot Usage (%) 88 | . 85 76 100 90 99 99 94 86 91 93 94 98 97 97 92 93 93 91 87 91 88 60 87 91 93 79 45 Engine 1 | . 14 11 11 9 1 . . . . . 4 6 5 3 . . . . . . . . . . . . . Core 2 | . . . . . 7 9 6 6 6 7 2 . . . . . . . . . 5 5 3 . . . . Reactor 1 | . . . . . . . . . . . . . . 2 6 6 6 5 5 4 . . 1 5 4 3 3 Leg 2 | . 28 11 . . . . . . 12 13 . . 1 . . . . . . . . . . . . . . Wheel 7 | . . 8 22 18 17 18 17 14 1 1 12 13 11 11 6 6 6 6 5 5 5 5 4 5 7 7 . Device 5 | . . 3 11 11 18 18 15 7 7 15 9 6 6 6 6 6 6 1 . 3 3 1 . 1 4 1 . Storage 6 | . 14 11 11 9 9 9 9 7 7 7 7 6 7 6 6 6 6 6 5 5 5 5 5 5 5 4 4 Processor 3 | . . . . . . . . . . 2 2 . . 1 6 6 6 6 5 5 5 5 5 5 11 14 4 Hackware 32 | . . 4 11 9 12 9 9 15 32 27 30 39 43 46 40 40 40 46 41 44 40 18 39 44 40 28 16 Protection 8 | . . 7 11 15 14 17 20 19 7 7 7 11 5 2 6 6 6 2 10 7 12 10 17 13 6 3 . Energy Gun 1 | . 14 12 11 9 7 15 7 . 1 . . . . . . . . . . . . . . . . . . Ballistic Gun 3 | . 14 5 11 9 8 2 . 2 1 . 12 1 2 6 . . . . . 1 6 . 10 2 . 4 . Ballistic Cannon 1 | . . . . . . . . . . . . 11 7 2 5 6 6 4 5 3 . . . . . . . Special Weapon 1 | . . . . . . . . 3 2 . . . 1 1 . . . 1 . 1 . . . . . . 2 Impact Weapon 2 | . . . . . . . . . 5 6 1 . . 1 6 5 6 6 5 3 2 . . . . . . Slashing Weapon 1 | . . . . . . . . 3 . . . . . . . . . . . . . 7 . 7 10 4 . Naked Turns . | . . . . . . . . . . . . . . . . . . . . . . . . . . . . Heaviest Build 137 | 12 12 93 93 101 103 105 106 116 111 103 103 111 110 113 112 112 112 112 121 130 132 131 137 136 123 132 106 Greatest Support 160 | 20 20 26 26 35 41 41 41 41 49 49 33 33 33 37 37 37 37 37 28 32 32 28 28 28 80 160 160 Greatest Overweight (x) 9 | 1 . 3 3 3 2 2 4 3 9 5 5 3 9 5 3 3 3 3 4 4 6 4 4 4 7 7 1 Average Overweight (x) 2 | . . . 3 2 2 2 2 2 1 2 3 2 3 2 2 3 3 2 3 3 3 3 4 4 3 . . Largest Inventory Capacity 25 | 8 8 25 25 25 25 25 25 25 25 25 25 25 25 25 25 25 25 25 25 25 25 25 25 25 25 25 25 Average Capacity 24 | 6 8 13 25 25 25 25 25 25 25 25 25 25 25 25 25 25 25 25 25 25 25 25 25 25 25 25 25 Most Carried 25 | 6 8 10 10 15 24 25 25 25 25 25 25 25 25 25 25 24 25 25 25 25 25 24 25 25 25 25 12 Average Carried 22 | 4 7 8 9 12 19 24 21 22 23 24 24 24 22 23 23 23 24 22 21 24 24 20 23 24 24 18 9 Final Capacity 25 | 8 8 25 25 25 25 25 25 25 25 25 25 25 25 25 25 25 25 25 25 25 25 25 25 25 25 25 25 Final Carried 25 | 6 8 9 10 15 24 24 20 24 25 25 25 25 25 25 23 24 25 20 25 22 23 18 25 25 25 12 5 Class Distribution -------------------- 61% | Botlord-Mutant 24% | Bothacker-Mutant 9% | Mutant 4% | Scavenger-Mutant Dominant Class ---------------- Mutant | -10/Materials Mutant | -9/Materials Scavenger-Mutant | -9/Mines Scavenger-Mutant | -8/Materials Bothacker-Mutant | -8/Garrison Mutant | -8/Materials Mutant | -8/Garrison Bothacker-Mutant | -7/Factory Bothacker-Mutant | -7/Garrison Bothacker-Mutant | -7/Factory Bothacker-Mutant | -7/Garrison Botlord-Mutant | -6/Factory Botlord-Mutant | -6/Garrison Botlord-Mutant | -6/Factory Botlord-Mutant | -6/Lower Caves Botlord-Mutant | -6/Lower Caves Botlord-Mutant | -6/Zion Botlord-Mutant | -5/Proximity Caves Botlord-Mutant | -5/Factory Botlord-Mutant | -5/Garrison Botlord-Mutant | -4/Factory Botlord-Mutant | -4/Extension Botlord-Mutant | -4/Cetus Botlord-Mutant | -4/Archives Botlord-Mutant | -4/Hub_04(d) Botlord-Mutant | -3/Research Botlord-Mutant | -3/Garrison Resources | -11 -10 -9 -9 -8 -8 -8 -8 -7 -7 -7 -7 -6 -6 -6 -6 -6 -6 -5 -5 -5 -4 -4 -4 -4 -4 -3 -3 ----------- Run | Scr Mat Mat Min Mat Gar Mat Gar Fac Gar Fac Gar Fac Gar Fac Low Low Zio Pro Fac Gar Fac Ext Cet Arc Hub Res Gar Matter Collected 9001 | 185 143 221 17 . 351 21 105 693 503 198 861 182 1037 752 20 54 . 181 87 830 562 220 110 354 110 1062 142 Remotely . | . . . . . . . . . . . . . . . . . . . . . . . . . . . . Salvage Created 13247 | . 395 413 98 . 458 395 444 591 427 314 864 100 744 1098 36 917 . 147 12 737 1200 542 24 558 517 2189 27 Parts 594 | . 29 27 14 . 27 22 26 37 22 6 27 12 23 54 1 3 . . . 45 39 30 1 30 15 102 2 Haulers Intercepted 13 | . 1 . . . . 1 . 2 . 1 . . . 1 . . . . . . 2 . . . . 5 . Recyclers Shooed 13 | . . 2 . . . . . . . 3 . . . 6 . . . . . . 1 . . . 1 . . Parts Field Recycled . | . . . . . . . . . . . . . . . . . . . . . . . . . . . . Retrieved Matter . | . . . . . . . . . . . . . . . . . . . . . . . . . . . . Parts Self-Destructed 2 | . . . . . . . . . . . . . . . . . . 2 . . . . . . . . . Prevented . | . . . . . . . . . . . . . . . . . . . . . . . . . . . . Kills | -11 -10 -9 -9 -8 -8 -8 -8 -7 -7 -7 -7 -6 -6 -6 -6 -6 -6 -5 -5 -5 -4 -4 -4 -4 -4 -3 -3 ------- Run | Scr Mat Mat Min Mat Gar Mat Gar Fac Gar Fac Gar Fac Gar Fac Low Low Zio Pro Fac Gar Fac Ext Cet Arc Hub Res Gar Combat Hostiles Destroyed 200 | . 8 10 6 . 8 5 17 11 11 1 11 2 15 14 . 1 . 2 1 23 7 7 1 3 3 31 2 Melee 29 | . . . . . . . . 1 4 . 1 . . 1 . . . 1 . 1 2 7 . 2 3 6 . Guns 87 | . 7 4 6 . 4 3 9 1 5 . 10 . 1 8 . . . . . 6 5 . 1 1 . 16 . Cannons 22 | . . . . . . . 1 3 . . . 2 8 . . . . . 1 7 . . . . . . . AOE 53 | . 1 6 . . 4 2 7 6 . . . . 5 5 . . . . . 6 . . . . . 9 2 Classes Destroyed 21 | . 6 2 . . . 2 . 4 . . . . 1 3 . 1 . . . 1 1 . . . . . . Worker 9 | . 1 . . . . . . 1 . 2 . . . 2 . . . . . . 1 . . . . 2 . Builder 13 | . . . . . . 2 . 1 . 1 . . . 1 . . . . . . 2 1 . . . 5 . Tunneler 3 | . . . . . . . . 1 . 1 . . . . . . . . . . . 1 . . . . . Hauler 13 | . 1 . . . . 1 . 2 . 1 . . . 1 . . . . . . 2 . . . . 5 . Recycler 10 | . . 2 . . . . . 1 . 1 . . . 2 . . . . . . 2 . . . 2 . . Mechanic 1 | . . . . . . . . . . . . . . . . . . . . . 1 . . . . . . Operator 11 | . 1 1 . . . . . . . . . . . 1 . . . . . . . . . 8 . . . Watcher 6 | . 2 . . . . . . . . 1 . 2 . 1 . . . . . . . . . . . . . Swarmer 56 | . 3 4 6 . . . 10 . 6 . 2 1 1 1 . . . . . 12 1 . 1 . . 8 . Cutter 4 | . . . . . . . . . . . . . . . . . . . . 4 . . . . . . . Saboteur 2 | . . . . . . . . . . . . . . 2 . . . . . . . . . . . . . Grunt 63 | . 5 2 . . 5 3 5 4 4 . 8 . 11 1 . . . 2 . 2 5 1 . . . 5 . Brawler 2 | . . . . . . 1 . . . . . . . . . . . . . 1 . . . . . . . Duelist 2 | . . . . . . . . . . . . . . 1 . . . . . . . . . . . 1 . Protector 1 | . . . . . . . . . . . . . . 1 . . . . . . . . . . . . . Sentry 27 | . . 4 . . 3 2 2 . 1 1 . . 2 2 . . . . . 1 1 3 . 3 1 1 . Specialist 8 | . . . . . . . . 1 . . 1 . . 2 . . . . . 2 . . . . . 2 . Hunter 21 | . . . . . . . . 3 . . . . . 4 . . . . . . . 2 . . 2 10 . Programmer 16 | . . . . . . . . 3 1 . . 1 . 1 . . . . 1 . 2 1 . . . 4 2 Behemoth 2 | . . . . . . . . . . . . . 1 . . . . . . 1 . . . . . . . Decomposer 2 | . . . . . . . . . . . . . . . 2 . . . . . . . . . . . . Thief 1 | . . . . . . . . . . . . . . . . 1 . . . . . . . . . . . Thug 1 | . . . . . 1 . . . . . . . . . . . . . . . . . . . . . . Best Kill Streak 8 | . 4 8 6 . 3 7 5 8 2 3 3 1 5 8 . 1 . 2 1 6 3 2 1 3 3 8 2 Combat Bots Only 8 | . 3 8 6 . 3 2 5 4 2 1 3 1 5 8 . 1 . 2 1 6 1 2 1 1 2 6 2 Max Kills in Single Turn 7 | . 1 3 3 . 2 2 2 7 1 1 1 1 2 5 1 1 . 1 1 2 2 1 1 1 1 4 1 Gunslinging 1 | . . . 1 . . . . . . . . . . 1 . . . . . . . . . . . . . Exploded 4 | . 1 3 . . 2 1 2 3 . . . . 2 4 . . . . . 2 . . . . . 3 1 Melee 1 | . . . . . . . . 1 1 . 1 . . 1 . . . 1 . 1 1 1 . 1 1 1 . Uniques/NPCs Destroyed . | . . . . . . . . . . . . . . . . . . . . . . . . . . . . Combat | -11 -10 -9 -9 -8 -8 -8 -8 -7 -7 -7 -7 -6 -6 -6 -6 -6 -6 -5 -5 -5 -4 -4 -4 -4 -4 -3 -3 -------- Run | Scr Mat Mat Min Mat Gar Mat Gar Fac Gar Fac Gar Fac Gar Fac Low Low Zio Pro Fac Gar Fac Ext Cet Arc Hub Res Gar Damage Taken 26784 | . 343 420 89 . 421 493 857 1413 1165 63 955 140 1463 1293 . 153 144 405 260 1457 1332 1935 71 800 1056 8699 1357 Core 3947 | . 42 61 10 . 64 84 156 200 204 13 203 27 326 183 . 50 . 76 . 266 194 307 . 98 79 1059 245 Absorbed by Shields 1935 | . . . . . . . . . 448 . 422 . 373 . . . . . . 360 . 287 45 . . . . Core Remaining (%) 57 | 100 83 . 82 . . . 44 . . . 11 . . . . . . 22 . 73 . . . . 41 . . Volleys Fired 795 | . 54 39 5 . 57 16 36 31 47 8 61 32 78 54 . 4 . 14 16 79 41 7 3 18 . 85 10 Largest 2 | . 2 2 2 . 2 2 2 1 2 1 2 1 2 2 . 1 . 1 1 1 2 1 2 2 . 2 1 Hottest 116 | . 60 95 68 . 68 95 95 65 116 30 51 48 96 78 . 48 . 48 57 57 68 30 70 70 . 85 50 Shots Fired 1073 | . 72 52 9 . 63 32 46 31 52 8 95 32 97 84 . 4 . 14 16 79 68 7 6 33 . 162 11 Gun 696 | . 72 48 9 . 58 32 34 4 30 4 71 . 6 64 . . . . . 17 57 . 6 30 . 154 . Cannon 159 | . . . . . . . 8 7 . . . 25 60 5 . 4 . 7 16 27 . . . . . . . Launcher 44 | . . 4 . . 5 . 4 3 . . . . 5 5 . . . . . 5 . . . . . 8 5 Special 174 | . . . . . . . . 17 22 4 24 7 26 10 . . . 7 . 30 11 7 . 3 . . 6 Kinetic 658 | . 18 9 5 . 49 . . 4 20 4 71 25 66 69 . 4 . 7 16 44 57 . 6 30 . 154 . Thermal 42 | . . 25 . . . . . 7 10 . . . . . . . . . . . . . . . . . . Explosive 44 | . . 4 . . 5 . 4 3 . . . . 5 5 . . . . . 5 . . . . . 8 5 Electromagnetic 155 | . 54 14 4 . 9 32 42 . . . . . . . . . . . . . . . . . . . . Robot Hit Streak 28 | . 6 8 9 . 28 10 5 6 12 6 10 3 8 14 . 2 . 7 5 14 14 5 8 5 . 9 6 Robot Miss Streak 11 | . 2 4 2 . 1 3 4 2 3 8 6 4 4 11 . 4 . 1 1 2 3 1 2 1 . 6 8 Penetration Max 3 | . . . . . . . . . . . . . . 1 . . . . . 1 3 . 1 1 . 2 . Secondary Targets 7 | . . . 1 . . . . . . . . . . 2 . . . . . . 1 . . . . 3 . Max Gunslinging Chain 1 | . . . 1 . . . . . . . . . . 1 . . . . . . 1 . . . . 1 . Shots Hit Robots 954 | . 46 32 5 . 49 27 23 35 44 15 82 14 68 61 2 24 . 15 12 61 62 34 4 46 20 162 11 Core Hits 522 | . 19 22 6 . 31 16 25 33 10 5 41 4 27 65 1 7 . 2 3 25 31 13 3 15 8 100 10 Critical Kills 21 | . . . . . 1 . . . 2 . . . . 2 . . . . . 6 5 . . . . 5 . Critical Parts Destroyed 33 | . . . . . . . . . 1 2 2 . 1 7 . . . . . 2 9 . . . . 9 . Critical Strikes 86 | . . 1 . . 1 2 . . 4 2 2 . 10 9 . . . . 4 14 16 3 . . . 18 . Burn 2 | . . 1 . . . . . . 1 . . . . . . . . . . . . . . . . . . Destroy 45 | . . . . . 1 . . . . . . . . 9 . . . . . 7 14 . . . . 14 . Blast 19 | . . . . . . . . . . . . . 9 . . . . . 4 6 . . . . . . . Corrupt 2 | . . . . . . 2 . . . . . . . . . . . . . . . . . . . . . Smash 9 | . . . . . . . . . 3 2 2 . 1 . . . . . . 1 . . . . . . . Sever 9 | . . . . . . . . . . . . . . . . . . . . . 2 3 . . . 4 . Melee Attacks 302 | . . . . . 3 . . 20 19 10 18 . 12 8 2 25 . 4 . 14 21 38 . 26 24 58 . Impact 114 | . . . . . . . . . 19 10 18 . 12 8 2 25 . 4 . 14 2 . . . . . . Slashing 183 | . . . . . . . . 20 . . . . . . . . . . . . 19 38 . 26 24 56 . Piercing 2 | . . . . . . . . . . . . . . . . . . . . . . . . . . 2 . Sneak Attacks 45 | . . . . . 1 . . 6 1 5 . . 3 1 2 . . 1 . 1 3 5 . 10 2 4 . Combat Hostiles 6 | . . . . . . . . . . . . . 3 . . . . 1 . 1 . 1 . . . . . Follow-up Attacks 14 | . . . . . . . . . . . . . . . . . . . . . . 2 . 3 5 4 . Damage Inflicted 36146 | . 680 924 88 . 1181 776 806 1556 870 733 1668 318 2728 3948 231 1780 . 395 460 1718 2034 1684 158 2610 1034 7432 334 Guns 9894 | . 615 367 88 . 481 477 251 57 325 57 777 . 57 1355 . . . . . 97 958 . 158 658 . 3116 . Cannons 2928 | . . . . . . . 41 164 . . . 318 1016 154 . 50 . 104 460 621 . . . . . . . Explosions 8361 | . 65 557 . . 700 299 514 757 . . . . 647 2134 . . . . . 588 . . . . . 1766 334 Melee 14955 | . . . . . . . . 578 545 668 891 . 1008 305 231 1730 . 291 . 412 1076 1684 . 1952 1034 2550 . Ramming 8 | . . . . . . . . . . 8 . . . . . . . . . . . . . . . . . Kinetic 10875 | . 137 72 29 . 386 . . 57 238 57 777 318 1073 1509 . 50 . 104 460 718 958 . 158 658 . 3116 . Thermal 1321 | . 65 208 . . 29 299 187 164 87 . . . . 282 . . . . . . . . . . . . . Explosive 7454 | . . 512 . . 671 . 327 757 . . . . 647 1852 . . . . . 588 . . . . . 1766 334 Electromagnetic 1533 | . 478 132 59 . 95 477 292 . . . . . . . . . . . . . . . . . . . . Impact 6148 | . . . . . . . . . 545 668 891 . 1008 305 231 1730 . 291 . 412 67 . . . . . . Slashing 8807 | . . . . . . . . 578 . . . . . . . . . . . . 1009 1684 . 1952 1034 2550 . Piercing . | . . . . . . . . . . . . . . . . . . . . . . . . . . . . Highest Corruption 19 | . 1 . . . . . . 3 5 9 14 1 1 1 1 1 1 . . . 2 2 9 9 3 14 19 Average Corruption 4 | . 1 . . . . . . 2 4 5 11 1 1 1 1 1 1 . . . 1 1 2 7 3 3 16 Corruption Purged 9 | . . . . . . . . . . . . . . . . . . . . . . 3 . 6 . . . Effects 182 | . . . . . . . . 7 39 18 50 1 8 2 2 1 . . . . 4 2 4 15 6 16 7 Message Errors 43 | . . . . . . . . 1 11 2 12 . 4 . . . . . . . 2 1 3 1 3 2 1 Matter Fused 38 | . . . . . . . . 2 9 9 10 . . . . . . . . . . . . 3 1 2 2 Heat Flow Errors 26 | . . . . . . . . 2 8 3 9 . . . . . . . . . . . . 2 . 1 1 Energy Discharges 29 | . . . . . . . . 2 6 2 5 1 2 1 1 . . . . . 2 . . 5 1 . 1 Parts Rejected 3 | . . . . . . . . . . . . . . . . . . . . . . . . 1 . 2 . Data Loss (minor) 19 | . . . . . . . . . 2 1 4 . 2 . 1 1 . . . . . 1 1 2 1 3 . Data Loss (major) 8 | . . . . . . . . . 3 1 2 . . . . . . . . . . . . 1 . . 1 Misfires 10 | . . . . . . . . . . . 7 . . . . . . . . . . . . . . 2 1 Alerts 1 | . . . . . . . . . . . . . . . . . . . . . . . . . . 1 . Weapon Failures 5 | . . . . . . . . . . . 1 . . 1 . . . . . . . . . . . 3 . Overload Shots . | . . . . . . . . . . . . . . . . . . . . . . . . . . . . Overflow Damage 3840 | . . 47 . . 3 . . 116 103 340 228 19 102 250 99 615 . 143 4 271 37 192 . 744 94 424 9 Projectiles 67 | . . . . . . . . 13 . . . 19 . 15 . 9 . 7 4 . . . . . . . . Explosions 230 | . . 47 . . 3 . . . . . . . . 98 . . . . . 53 . . . . . 20 9 Melee 3543 | . . . . . . . . 103 103 340 228 . 102 137 99 606 . 136 . 218 37 192 . 744 94 404 . Knockbacks 29 | . . . . . . . . . 1 2 . 5 3 2 . 2 . 3 6 3 2 . . . . . . Impact 6 | . . . . . . . . . 1 2 . . . . . . . 1 . 1 1 . . . . . . Kinetic 22 | . . . . . . . . . . . . 5 3 2 . 2 . 2 6 2 . . . . . . . Secondary 1 | . . . . . . . . . . . . . . . . . . . . . 1 . . . . . . Self-Inflicted Damage 362 | . . . . . 43 46 53 . . . . . . 64 . . . . . 62 . . . . . 38 56 Shots 14 | . . . . . 1 2 2 . . . . . . 2 . . . . . 2 . . . . . 2 3 Rammed . | . . . . . . . . . . . . . . . . . . . . . . . . . . . . Targets Rammed 1 | . . . . . . . . . . 1 . . . . . . . . . . . . . . . . . Kicked 1 | . . . . . . . . . . 1 . . . . . . . . . . . . . . . . . Crushed . | . . . . . . . . . . . . . . . . . . . . . . . . . . . . Highest Temperature 325 | . 117 66 . . 9 27 85 250 325 240 274 32 195 12 . . . 29 95 24 30 6 . 205 . 223 77 Average Temperature 52 | . 40 22 . . 5 12 38 46 94 91 100 10 45 5 . . . 11 31 7 7 3 . 44 . 66 27 Received Heat Transfer 3218 | . 171 99 . . 108 270 297 120 209 30 235 18 377 177 . . . 72 90 144 120 165 . 117 18 159 222 Effects 1 | . . . . . . . . . . . 1 . . . . . . . . . . . . . . . . Interference 1 | . . . . . . . . . . . 1 . . . . . . . . . . . . . . . . Siege Activations . | . . . . . . . . . . . . . . . . . . . . . . . . . . . . Robots Corrupted . | . . . . . . . . . . . . . . . . . . . . . . . . . . . . Combat Hostiles . | . . . . . . . . . . . . . . . . . . . . . . . . . . . . Parts Fried 28 | . 2 1 . . . 1 . . 2 6 . . 1 . 1 3 . 4 . 6 . 1 . . . . . Impact Corruptions 63 | . . . . . . . . . 3 13 3 . 4 2 3 24 . 5 . 6 . . . . . . . Robots Melted . | . . . . . . . . . . . . . . . . . . . . . . . . . . . . Combat Hostiles . | . . . . . . . . . . . . . . . . . . . . . . . . . . . . Parts Melted 5 | . . 1 . . . 1 . . 1 . . . . . . . . 2 . . . . . . . . . Heat Transferred 1850 | . 100 605 . . 25 400 150 185 185 . . . . 200 . . . . . . . . . . . . . Parts Sabotaged 2 | . . . . . . . . . . . . . . . . . . . . . . 2 . . . . . Parts Stolen . | . . . . . . . . . . . . . . . . . . . . . . . . . . . . Parts Stripped . | . . . . . . . . . . . . . . . . . . . . . . . . . . . . Power Chain Reactions 11 | . 2 1 . . 1 5 2 . . . . . . . . . . . . . . . . . . . . Missiles Intercepted . | . . . . . . . . . . . . . . . . . . . . . . . . . . . . Alert | -11 -10 -9 -9 -8 -8 -8 -8 -7 -7 -7 -7 -6 -6 -6 -6 -6 -6 -5 -5 -5 -4 -4 -4 -4 -4 -3 -3 ------- Run | Scr Mat Mat Min Mat Gar Mat Gar Fac Gar Fac Gar Fac Gar Fac Low Low Zio Pro Fac Gar Fac Ext Cet Arc Hub Res Gar Peak Influence 1552 | . 318 448 236 91 471 481 783 550 841 469 463 269 595 1552 . . . . 157 1006 1515 1453 1246 418 121 676 577 Initial 813 | . . 133 96 91 59 229 306 410 385 441 . 233 107 312 . . . . 22 25 527 742 813 418 20 2 431 Average 471 | . 145 297 216 91 289 300 615 347 606 218 261 180 317 820 . . . . 77 586 758 898 1094 172 52 301 503 Maximum Alert Level 4 | . 1 2 1 . 2 2 3 2 3 2 2 1 2 4 . . . . . 3 4 4 4 2 . 2 2 Low Security (%) 21 | 100 55 19 27 100 25 . . 19 . 50 39 46 17 . . . . . 100 8 . . . 55 100 39 . Level 1 26 | . 44 65 72 . 48 79 10 16 13 18 46 53 54 36 . . . . . 16 20 . . 42 . 27 . Level 2 27 | . . 15 . . 26 20 54 64 56 32 14 . 28 16 . . . . . 33 29 . . 2 . 33 100 Level 3 18 | . . . . . . . 34 . 30 . . . . 7 . . . . . 40 26 95 30 . . . . Level 4 5 | . . . . . . . . . . . . . . 39 . . . . . . 23 4 69 . . . . Level 5 . | . . . . . . . . . . . . . . . . . . . . . . . . . . . . High Security . | . . . . . . . . . . . . . . . . . . . . . . . . . . . . Max Security . | . . . . . . . . . . . . . . . . . . . . . . . . . . . . Squads Dispatched 37 | . 1 1 . . . 3 . 2 . 2 . 3 . 4 . . . . 1 . 8 2 . . . 10 . Investigation 1 | . . . . . . . . . . . . . . . . . . . 1 . . . . . . . . Extermination 9 | . . . . . . . . 1 . 1 . 1 . 1 . . . . . . 3 . . . . 2 . Reinforcement 15 | . 1 1 . . . 2 . 1 . . . . . 1 . . . . . . 4 . . . . 5 . Assault 7 | . . . . . . . . . . . . . . 2 . . . . . . 1 2 . . . 2 . Garrison 5 | . . . . . . 1 . . . 1 . 2 . . . . . . . . . . . . . 1 . Intercept . | . . . . . . . . . . . . . . . . . . . . . . . . . . . . Construction Impeded 3 | . . . . . . 1 . . . . . . . . . . . . . . . . . . . 2 . Haulers Reinforced 2 | . . . . . . . . . . . . . . . . . . . . . 1 . . . . 1 . Active Scanning Responses . | . . . . . . . . . . . . . . . . . . . . . . . . . . . . Cargo Convoy Interrupts 3 | . . . . . . . . 1 . . . . . 1 . . . . . . 1 . . . . . . Stealth | -11 -10 -9 -9 -8 -8 -8 -8 -7 -7 -7 -7 -6 -6 -6 -6 -6 -6 -5 -5 -5 -4 -4 -4 -4 -4 -3 -3 --------- Run | Scr Mat Mat Min Mat Gar Mat Gar Fac Gar Fac Gar Fac Gar Fac Low Low Zio Pro Fac Gar Fac Ext Cet Arc Hub Res Gar Distress Signals 15 | . 1 . . . . 7 . 2 . . . . . 2 . . . . . . 1 . 1 . . 1 . Communications Jammed 431 | . . . . . . . . . . . . 11 . 96 . . . . . . 1 100 223 . . . . Distress Signals 430 | . . . . . . . . . . . . 10 . 96 . . . . . . 1 100 223 . . . . Times Spotted 520 | . 17 16 3 . 11 18 19 30 30 10 31 11 31 50 . 2 5 6 4 45 39 39 18 14 5 51 15 Peak Tracking Total 12 | . 3 8 3 . 3 8 7 10 6 3 4 4 4 12 . 2 5 3 2 5 7 7 9 1 2 9 9 Tactical Retreats 32 | . 3 . . . . 1 4 1 2 . 1 . 1 . . 1 1 . . 3 2 2 . 1 . 7 2 Traps | -11 -10 -9 -9 -8 -8 -8 -8 -7 -7 -7 -7 -6 -6 -6 -6 -6 -6 -5 -5 -5 -4 -4 -4 -4 -4 -3 -3 ------- Run | Scr Mat Mat Min Mat Gar Mat Gar Fac Gar Fac Gar Fac Gar Fac Low Low Zio Pro Fac Gar Fac Ext Cet Arc Hub Res Gar Traps Triggered 57 | . 1 . . . 2 . 4 3 7 2 13 . 5 . . . . . . 14 1 1 . . . 3 1 Indirectly . | . . . . . . . . . . . . . . . . . . . . . . . . . . . . Trap Hack Attempts . | . . . . . . . . . . . . . . . . . . . . . . . . . . . . Triggered . | . . . . . . . . . . . . . . . . . . . . . . . . . . . . Disarmed . | . . . . . . . . . . . . . . . . . . . . . . . . . . . . Reprogrammed . | . . . . . . . . . . . . . . . . . . . . . . . . . . . . Reused . | . . . . . . . . . . . . . . . . . . . . . . . . . . . . Traps Extracted . | . . . . . . . . . . . . . . . . . . . . . . . . . . . . Installed . | . . . . . . . . . . . . . . . . . . . . . . . . . . . . Triggered 1 | . . . . . . . . . . . . . . . . . . . . . 1 . . . . . . Machines | -11 -10 -9 -9 -8 -8 -8 -8 -7 -7 -7 -7 -6 -6 -6 -6 -6 -6 -5 -5 -5 -4 -4 -4 -4 -4 -3 -3 ---------- Run | Scr Mat Mat Min Mat Gar Mat Gar Fac Gar Fac Gar Fac Gar Fac Low Low Zio Pro Fac Gar Fac Ext Cet Arc Hub Res Gar Machines Disabled 42 | . . . . . 3 . 1 . 3 . 3 . 4 19 . . . . . 4 . 2 1 1 . 1 . Max in Single Turn 4 | . . . . . 1 . 1 . 1 . 1 . 1 4 . . . . . 1 . . . 1 . 1 . Garrison Access 2 | . . . . . . . . . . . . . . . . . . . . . . . . . 1 1 . Garrison Relay 17 | . . . . . 3 . 1 . 3 . 3 . 3 . . . . . . 4 . . . . . . . Machines Sabotaged . | . . . . . . . . . . . . . . . . . . . . . . . . . . . . Garrisons Compromised 1 | . . . . . . . . . . . . . . . . . . . . . 1 . . . . . . Overloaded Fab Kills . | . . . . . . . . . . . . . . . . . . . . . . . . . . . . Fab Network Shutdowns . | . . . . . . . . . . . . . . . . . . . . . . . . . . . . Hacking | -11 -10 -9 -9 -8 -8 -8 -8 -7 -7 -7 -7 -6 -6 -6 -6 -6 -6 -5 -5 -5 -4 -4 -4 -4 -4 -3 -3 --------- Run | Scr Mat Mat Min Mat Gar Mat Gar Fac Gar Fac Gar Fac Gar Fac Low Low Zio Pro Fac Gar Fac Ext Cet Arc Hub Res Gar Machines Accessed 40 | . 2 2 . 1 . 2 . 5 . 5 . 2 . 2 2 . . . 4 . 3 3 1 1 2 3 . Terminals 21 | . 2 1 . . . 1 . 3 . 3 . 1 . 2 . . . . 1 . 2 3 1 . 1 . . Fabricators 3 | . . . . . . . . 1 . . . . . . . . . . 1 . 1 . . . . . . Repair Stations 1 | . . 1 . . . . . . . . . . . . . . . . . . . . . . . . . Recycling Units 1 | . . . . . . . . . . 1 . . . . . . . . . . . . . . . . . Scanalyzers 2 | . . . . . . . . . . . . . . . . . . . 1 . . . . . . 1 . Garrison Access 9 | . . . . 1 . 1 . 1 . 1 . 1 . . . . . . 1 . . . . . 1 2 . Total Hacks 100 | . 3 4 . 1 . 3 . 9 . 13 . 2 . 6 2 . . . 8 . 6 4 3 25 5 6 . Successful 70 | . 1 3 . 1 . 2 . 4 . 8 . 1 . 3 2 . . . 5 . 3 3 . 25 4 5 . Failed 30 | . 2 1 . . . 1 . 5 . 5 . 1 . 3 . . . . 3 . 3 1 3 . 1 1 . Catastrophic 8 | . 1 . . . . 1 . 2 . 2 . . . . . . . . 1 . . . 1 . . . . Database Lockouts . | . . . . . . . . . . . . . . . . . . . . . . . . . . . . Manual 39 | . 3 2 . . . 2 . 7 . 10 . 1 . 2 . . . . 2 . 4 . 1 2 3 . . Terminals 49 | . 3 2 . . . 2 . 7 . 11 . 1 . 6 . . . . 2 . 4 4 3 . 4 . . Fabricators 6 | . . . . . . . . 1 . . . . . . . . . . 3 . 2 . . . . . . Repair Stations 2 | . . 2 . . . . . . . . . . . . . . . . . . . . . . . . . Recycling Units 1 | . . . . . . . . . . 1 . . . . . . . . . . . . . . . . . Scanalyzers 6 | . . . . . . . . . . . . . . . . . . . 2 . . . . . . 4 . Garrison Access 9 | . . . . 1 . 1 . 1 . 1 . 1 . . . . . . 1 . . . . . 1 2 . Terminal Hacks 40 | . 1 . . . . . . 1 . 4 . . . 1 2 . . . . . . 3 . 25 3 . . Record 27 | . . . . . . . . . . . . . . . . . . . . . . . . 25 2 . . Part Schematic 1 | . 1 . . . . . . . . . . . . . . . . . . . . . . . . . . Open Door 5 | . . . . . . . . . . . . . . . 2 . . . . . . 3 . . . . . Level Access Points 1 | . . . . . . . . . . . . . . . . . . . . . . . . . 1 . . Unreport Threat 4 | . . . . . . . . 1 . 2 . . . 1 . . . . . . . . . . . . . Locate Traps 1 | . . . . . . . . . . 1 . . . . . . . . . . . . . . . . . Garrison Status 1 | . . . . . . . . . . 1 . . . . . . . . . . . . . . . . . Fabricator Hacks 5 | . . . . . . . . 1 . . . . . . . . . . 2 . 2 . . . . . . Load Schematic 2 | . . . . . . . . . . . . . . . . . . . 1 . 1 . . . . . . Build 3 | . . . . . . . . 1 . . . . . . . . . . 1 . 1 . . . . . . Repair Station Hacks 2 | . . 2 . . . . . . . . . . . . . . . . . . . . . . . . . Scan Component 1 | . . 1 . . . . . . . . . . . . . . . . . . . . . . . . . Repair 1 | . . 1 . . . . . . . . . . . . . . . . . . . . . . . . . Recycling Unit Hacks . | . . . . . . . . . . . . . . . . . . . . . . . . . . . . Scanalyzer 5 | . . . . . . . . . . . . . . . . . . . 2 . . . . . . 3 . Insert Component 2 | . . . . . . . . . . . . . . . . . . . 1 . . . . . . 1 . Analyze 3 | . . . . . . . . . . . . . . . . . . . 1 . . . . . . 2 . Garrison Access Hacks 9 | . . . . 1 . 1 . 1 . 1 . 1 . . . . . . 1 . . . . . 1 2 . Unlock Access 7 | . . . . 1 . 1 . 1 . 1 . 1 . . . . . . 1 . . . . . . 1 . Seal Access 2 | . . . . . . . . . . . . . . . . . . . . . . . . . 1 1 . Unauthorized Hacks 9 | . . 1 . . . 1 . 1 . 3 . . . 2 . . . . . . 1 . . . . . . Terminals 9 | . . 1 . . . 1 . 1 . 3 . . . 2 . . . . . . 1 . . . . . . Botnet 9 | . . 1 . . . 1 . 1 . 3 . . . 2 . . . . . . 1 . . . . . . Fabricators . | . . . . . . . . . . . . . . . . . . . . . . . . . . . . Repair Stations . | . . . . . . . . . . . . . . . . . . . . . . . . . . . . Recycling Units . | . . . . . . . . . . . . . . . . . . . . . . . . . . . . Scanalyzers . | . . . . . . . . . . . . . . . . . . . . . . . . . . . . Garrison Access . | . . . . . . . . . . . . . . . . . . . . . . . . . . . . Data Cores Recovered 2 | . 1 . . . . . . . . . . . . 1 . . . . . . . . . . . . . Used 1 | . 1 . . . . . . . . . . . . . . . . . . . . . . . . . . Hacking Detections 25 | . 2 1 . . . 1 . 5 . 4 . 2 . 2 . . . . 2 . 2 2 1 . . 1 . Full Trace Events 1 | . . . . . . . . . . . . . . . . . . . 1 . . . . . . . . Feedback Events . | . . . . . . . . . . . . . . . . . . . . . . . . . . . . Feedback Blocked . | . . . . . . . . . . . . . . . . . . . . . . . . . . . . Robot Schematics Acquired . | . . . . . . . . . . . . . . . . . . . . . . . . . . . . Robots Built . | . . . . . . . . . . . . . . . . . . . . . . . . . . . . Matter . | . . . . . . . . . . . . . . . . . . . . . . . . . . . . Time . | . . . . . . . . . . . . . . . . . . . . . . . . . . . . Total Robot Build Rating . | . . . . . . . . . . . . . . . . . . . . . . . . . . . . Part Schematics Acquired 3 | . 1 . . . . . . . . . . . . . . . . . 1 . . . . . . 1 . Parts Built 3 | . . . . . . . . 1 . . . . . . . . . . 1 . 1 . . . . . . Matter 504 | . . . . . . . . 168 . . . . . . . . . . 168 . 168 . . . . . . Time 168 | . . . . . . . . 42 . . . . . . . . . . 42 . 84 . . . . . . Total Part Build Rating 12 | . . . . . . . . 4 . . . . . . . . . . 4 . 4 . . . . . . Parts Repaired 1 | . . 1 . . . . . . . . . . . . . . . . . . . . . . . . . Time 51 | . . 51 . . . . . . . . . . . . . . . . . . . . . . . . . Parts Recycled . | . . . . . . . . . . . . . . . . . . . . . . . . . . . . Recycled Matter . | . . . . . . . . . . . . . . . . . . . . . . . . . . . . Retrieved Matter . | . . . . . . . . . . . . . . . . . . . . . . . . . . . . Retrieved Components . | . . . . . . . . . . . . . . . . . . . . . . . . . . . . Parts Scanalyzed 2 | . . . . . . . . . . . . . . . . . . . 1 . . . . . . 1 . Part Schematics Acquired 2 | . . . . . . . . . . . . . . . . . . . 1 . . . . . . 1 . Parts Damaged . | . . . . . . . . . . . . . . . . . . . . . . . . . . . . Bothacking | -11 -10 -9 -9 -8 -8 -8 -8 -7 -7 -7 -7 -6 -6 -6 -6 -6 -6 -5 -5 -5 -4 -4 -4 -4 -4 -3 -3 ------------ Run | Scr Mat Mat Min Mat Gar Mat Gar Fac Gar Fac Gar Fac Gar Fac Low Low Zio Pro Fac Gar Fac Ext Cet Arc Hub Res Gar Used RIF Installer 6 | . . . . . 1 . 1 . 1 . 1 . 1 . . . . . . 1 . . . . . . . Coupler Efficiency 1 | . . . . . . . . . . . . . . . . . . . . 1 . . . . . . . Signal Jammer 1 | . . . . . . . . . 1 . . . . . . . . . . . . . . . . . . Robot Detection 1 | . . . . . . . . . . . 1 . . . . . . . . . . . . . . . . Structural Interface 1 | . . . . . . . 1 . . . . . . . . . . . . . . . . . . . . Autoassimilate 1 | . . . . . . . . . . . . . 1 . . . . . . . . . . . . . . Robots Hacked 110 | . . . . . 1 . . 7 14 1 13 2 14 10 . . . 4 . 18 8 5 2 2 1 4 4 Non-combat 5 | . . . . . . . . 2 . . . . . 1 . . . . . . . 1 . 1 . . . Combat 105 | . . . . . 1 . . 5 14 1 13 2 14 9 . . . 4 . 18 8 4 2 1 1 4 4 Autoassimilated 23 | . . . . . . . . . . . . . 1 6 . . . . . 3 3 1 2 1 1 4 1 Robot Hacks Applied 91 | . . . . . 1 . . 9 14 1 13 2 13 4 . . . 5 . 15 5 4 . 2 . . 3 drop_inventory 1 | . . . . . . . . 1 . . . . . . . . . . . . . . . . . . . purge_threat 2 | . . . . . . . . . . . . . . . . . . . . . . . . 2 . . . map_route 1 | . . . . . . . . 1 . . . . . . . . . . . . . . . . . . . scatter_targeting 1 | . . . . . . . . . 1 . . . . . . . . . . . . . . . . . . spike_heat 3 | . . . . . . . . . . . . . . . . . . 2 . . 1 . . . . . . overload_power 3 | . . . . . . . . 1 2 . . . . . . . . . . . . . . . . . . amplify_resonance 3 | . . . . . . . . 1 1 . 1 . . . . . . . . . . . . . . . . reboot_system 3 | . . . . . . . . 1 . . . . 1 . . . . . . . . 1 . . . . . overwrite_iff 31 | . . . . . . . . 4 6 . 6 1 5 . . . . 1 . 5 2 . . . . . 1 streamctrl_high 1 | . . . . . . . . . . . . . . . . . . . . . . 1 . . . . . formatsys_high 42 | . . . . . 1 . . . 4 1 6 1 7 4 . . . 2 . 10 2 2 . . . . 2 Relay Couplers Released 68 | . . . . . 13 . 5 . 10 . 12 . 12 . . . . . 3 13 . . . . . . . Machine Destruction 65 | . . . . . 13 . 5 . 10 . 12 . 12 . . . . . . 13 . . . . . . . Programmers 3 | . . . . . . . . . . . . . . . . . . . 3 . . . . . . . . Attached 47 | . . . . . 1 . . 5 4 1 6 1 6 3 1 . . 3 1 7 1 3 2 . . . 2 Robots Rewired 11 | . . . . . . . . . . . . . . . . . . . . . . 11 . . . . . Allies Hacked 5 | . . . . . . . . . 1 . . . . . . . . . 1 . 2 . . . . 1 . Hacks Repelled . | . . . . . . . . . . . . . . . . . . . . . . . . . . . . Allies | -11 -10 -9 -9 -8 -8 -8 -8 -7 -7 -7 -7 -6 -6 -6 -6 -6 -6 -5 -5 -5 -4 -4 -4 -4 -4 -3 -3 -------- Run | Scr Mat Mat Min Mat Gar Mat Gar Fac Gar Fac Gar Fac Gar Fac Low Low Zio Pro Fac Gar Fac Ext Cet Arc Hub Res Gar Total Allies 114 | . . . 1 . 1 . . 4 10 1 12 2 13 10 . . . 3 . 18 7 20 2 1 1 4 4 Largest Group 19 | . . . 1 1 1 1 . 2 4 3 2 1 3 8 . . . 2 2 11 11 19 15 1 1 3 1 Highest-Rated Group 1068 | . . . 31 31 31 15 . 53 96 68 64 32 90 343 . . . 88 88 402 422 1068 754 136 49 86 116 Highest-Rated Ally 156 | . . . 31 31 31 15 . 43 32 32 32 32 47 114 . . . 47 47 85 49 156 150 136 49 49 116 Total Orders 42 | . . . . . . . . . 2 . 3 2 2 2 . . . . . 17 7 6 1 . . . . STAY 25 | . . . . . . . . . 1 . 2 1 1 1 . . . . . 11 4 3 1 . . . . FOLLOW 17 | . . . . . . . . . 1 . 1 1 1 1 . . . . . 6 3 3 . . . . . Ally Attacks 742 | . . . . . 16 8 . 17 35 12 36 7 51 99 . . . 16 14 45 120 153 83 3 . 23 4 Total Damage 18349 | . . . . . 247 156 . 265 477 280 616 200 1131 2343 . . . 349 596 701 3233 4796 2107 160 . 533 159 Kills 135 | . . . . . 3 1 . . 5 2 7 1 6 21 . . . 2 5 9 22 27 21 . . 2 1 Allies Corrupted 4 | . . . . . . . . . . . . . . 1 . . . . . 2 1 . . . . . . Allies Melted 3 | . . . . . . . . . . . . . . 1 . . . . . . 1 1 . . . . . Intel | -11 -10 -9 -9 -8 -8 -8 -8 -7 -7 -7 -7 -6 -6 -6 -6 -6 -6 -5 -5 -5 -4 -4 -4 -4 -4 -3 -3 ------- Run | Scr Mat Mat Min Mat Gar Mat Gar Fac Gar Fac Gar Fac Gar Fac Low Low Zio Pro Fac Gar Fac Ext Cet Arc Hub Res Gar Robot Analysis Total . | . . . . . . . . . . . . . . . . . . . . . . . . . . . . Derelict Logs Recovered 4 | . . . . . . . . . . . . . . . 1 2 . 1 . . . . . . . . . Drone Launches . | . . . . . . . . . . . . . . . . . . . . . . . . . . . . Drone Recoveries . | . . . . . . . . . . . . . . . . . . . . . . . . . . . . Exploration | -11 -10 -9 -9 -8 -8 -8 -8 -7 -7 -7 -7 -6 -6 -6 -6 -6 -6 -5 -5 -5 -4 -4 -4 -4 -4 -3 -3 ------------- Run | Scr Mat Mat Min Mat Gar Mat Gar Fac Gar Fac Gar Fac Gar Fac Low Low Zio Pro Fac Gar Fac Ext Cet Arc Hub Res Gar Turns Passed 21085 | 65 378 488 55 41 729 259 673 1185 1690 800 1337 745 1362 957 368 662 151 572 461 2569 1356 1339 474 509 439 1181 240 Spaces Moved 10914 | 46 188 222 28 23 383 151 379 766 656 280 680 465 704 527 249 403 104 354 264 1338 690 651 248 222 245 522 126 Core 8 | 8 . . . . . . . . . . . . . . . . . . . . . . . . . . . Treads 351 | . . . . . . . . . . . . . . . . . . . . . . . . . 7 218 126 Legs 1150 | 38 188 131 . . . . . . 549 244 . . . . . . . . . . . . . . . . . Wheels 9405 | . . 91 28 23 383 151 379 766 107 36 680 465 704 527 249 403 104 354 264 1338 690 651 248 222 238 304 . Hover . | . . . . . . . . . . . . . . . . . . . . . . . . . . . . Flight . | . . . . . . . . . . . . . . . . . . . . . . . . . . . . Fastest Speed 50 | 50 120 90 135 120 120 130 130 125 125 125 125 120 135 120 130 145 145 130 145 145 145 145 160 160 145 113 160 Average Speed 150 | 110 120 130 135 129 126 130 135 128 217 253 136 134 142 131 142 145 145 144 158 153 159 159 160 160 155 137 161 Slowest Speed 280 | 120 120 200 135 135 130 130 160 145 280 280 155 135 225 165 145 145 145 145 160 160 190 160 160 160 260 260 260 Overloaded Moves . | . . . . . . . . . . . . . . . . . . . . . . . . . . . . Propulsion Burnouts . | . . . . . . . . . . . . . . . . . . . . . . . . . . . . Robots Hopped . | . . . . . . . . . . . . . . . . . . . . . . . . . . . . Cave-ins Triggered 1 | . . . . . . . . . . . . . . . . . . . . . . . . . . 1 . Exploration Rate (%) 39 | 3 36 20 8 3 55 20 61 17 96 8 85 12 65 18 48 58 12 59 6 98 17 58 68 99 30 22 22 Regions Visited 27 Branch Regions 9 Pre-discovered Areas 2 | . . . . . . . . . . . . . . . 1 1 . . . . . . . . . . . Known Exits Taken 8 | . . . . 1 . 1 . 1 . 1 . 1 . . . . . . 1 . . . . . 1 1 . Unknown Exits Taken 13 | 1 1 1 1 . . . . . . . . . . 1 1 1 1 1 . . 1 1 1 1 . . . Scrap Searched 7 | . . . 1 . . . . . . . . . . . 1 4 . 1 . . . . . . . . . Spaces Dug 20 | . . . . . . . . . . 2 . 3 . 1 . . . . . . . . . . 1 13 . Terrain Destroyed 539 | . 8 33 . . 21 18 33 31 . 2 . 8 16 90 . 1 . 1 4 24 9 . 1 5 1 94 139 Melee 10 | . . . . . . . . . . 2 . . . 1 . . . . . . . . . . 1 6 . Projectile 85 | . . . . . . . . 3 . . . 8 . 43 . 1 . 1 4 3 9 . 1 5 . 7 . AOE 444 | . 8 33 . . 21 18 33 28 . . . . 16 46 . . . . . 21 . . . . . 81 139 Terrain Rammed . | . . . . . . . . . . . . . . . . . . . . . . . . . . . . Walls Destroyed . | . . . . . . . . . . . . . . . . . . . . . . . . . . . . Machines Disabled . | . . . . . . . . . . . . . . . . . . . . . . . . . . . . Actions | -11 -10 -9 -9 -8 -8 -8 -8 -7 -7 -7 -7 -6 -6 -6 -6 -6 -6 -5 -5 -5 -4 -4 -4 -4 -4 -3 -3 --------- Run | Scr Mat Mat Min Mat Gar Mat Gar Fac Gar Fac Gar Fac Gar Fac Low Low Zio Pro Fac Gar Fac Ext Cet Arc Hub Res Gar Total 14091 | 57 270 368 36 33 558 185 491 900 848 355 982 555 953 695 259 440 104 394 291 1754 849 889 316 309 289 760 151 Wait 956 | . 19 75 3 3 73 6 23 31 48 31 57 33 69 36 6 . . 11 . 184 59 58 37 30 8 49 7 Move 10894 | 45 187 221 27 23 382 151 378 766 655 280 679 465 703 526 248 402 103 353 264 1337 689 650 247 221 244 522 126 Hop . | . . . . . . . . . . . . . . . . . . . . . . . . . . . . Pick Up 163 | 6 4 5 1 5 13 4 4 20 9 4 7 4 14 15 . 3 1 . 6 12 8 2 6 2 2 6 . Fast Attach 112 | 6 . 10 . 2 2 1 1 4 2 6 6 4 6 7 . . . . 2 10 5 12 8 6 6 6 . Attach 133 | . . 3 . . 4 1 8 11 9 2 9 3 10 10 2 1 . 5 . 13 4 5 5 . 2 19 7 Detach 53 | . . 2 . . 3 . . 2 3 3 7 3 4 7 1 1 . . . 4 1 . 4 2 2 3 1 Swap 162 | . 2 4 . . 9 1 . 7 13 2 21 4 23 18 . 2 . 7 1 14 12 3 4 5 3 7 . Drop 104 | . 4 9 . . 4 5 . 8 2 8 10 7 6 14 . 2 . . 2 3 9 . 2 3 4 2 . Fire 795 | . 54 39 5 . 57 16 36 31 47 8 61 32 78 54 . 4 . 14 16 79 41 7 3 18 . 85 10 Melee 285 | . . . . . 3 . . 20 19 10 18 . 12 8 2 25 . 4 . 14 21 36 . 22 18 53 . Ram . | . . . . . . . . . . . . . . . . . . . . . . . . . . . . Kick 1 | . . . . . . . . . . 1 . . . . . . . . . . . . . . . . . Crush . | . . . . . . . . . . . . . . . . . . . . . . . . . . . . Escape Stasis 314 | . . . . . 8 . 32 . 41 . 104 . 24 . . . . . . 80 . 17 . . . 8 . Rewire 119 | . . . . . . . 9 . . . 3 . 4 . . . . . . 4 . 99 . . . . . Trap . | . . . . . . . . . . . . . . . . . . . . . . . . . . . . Miscellaneous . | . . . . . . . . . . . . . . . . . . . . . . . . . . . . Route ------- -11/Scrapyard -10/Materials -9/Materials -9/Mines -8/Materials -8/Garrison (discovered 2 exits: *Mat x2) -8/Materials -8/Garrison (discovered 2 exits: *Fac x2) -7/Factory (discovered 3 exits: Fac / [*Low] / Gar) -7/Garrison (discovered 3 exits: *Fac x3) -7/Factory (discovered 2 exits: [*Low] / Gar) -7/Garrison (discovered 3 exits: *Fac x3) -6/Factory (discovered 2 exits: *Low / Gar) -6/Garrison (discovered 2 exits: *Fac x2) -6/Factory -6/Lower Caves -6/Lower Caves -6/Zion -5/Proximity Caves -5/Factory (discovered 4 exits: Fac x2 / [*Upp] / Gar) -5/Garrison (discovered 3 exits: *Fac x3) -4/Factory -4/Extension (discovered 2 exits: *Res / *Cet) -4/Cetus (discovered 2 exits: *Res / *Arc) -4/Archives (discovered 3 exits: *Res / *Hub x2) -4/Hub_04(d) (discovered 4 exits: *Res x4) -3/Research (discovered 3 exits: Arm / [*Tes] / Gar) -3/Garrison History --------- Turn | Location | Event 2 | -11/Scrapyard | Met Revision 17 7 | -11/Scrapyard | Discovered new exit (range 15) 66 | -11/Scrapyard | Entered Materials 303 | -10/Materials | Build established: Mutant 351 | -10/Materials | Discovered new exit (range 16) 444 | -10/Materials | Entered another Materials area 444 | -9/Materials | Evolved 2 slots: Utility x2 511 | -9/Materials | Discovered new exit (range 13) 578 | -9/Materials | Lost 3 parts (1n2w) 583 | -9/Materials | Destroyed 8 combat bots 903 | -9/Materials | Repaired Imp. EM Shotgun 932 | -9/Materials | Entered Mines 937 | -9/Mines | Discovered new exit (range 13) 971 | -9/Mines | Assembled infested the area 980 | -9/Mines | Escorted by a lone wolf Derelict 987 | -9/Mines | Entered Materials 987 | -8/Materials | Accompanied by 1 ally 987 | -8/Materials | Evolved 2 slots: Utility x2 1025 | -8/Materials | Identified exit to Garrison 1028 | -8/Materials | Entered Garrison 1028 | -8/Garrison | Accompanied by 1 ally 1034 | -8/Garrison | Installed Relay Interface Framework 1064 | -8/Garrison | Triggered checkpoint 1073 | -8/Garrison | Build established: Scavenger-Mutant 1106 | -8/Garrison | Garrison Relay disabled 1207 | -8/Garrison | Triggered checkpoint 1258 | -8/Garrison | Discovered new exit (range 9) 1304 | -8/Garrison | Triggered checkpoint 1351 | -8/Garrison | Garrison Relay disabled 1420 | -8/Garrison | Build established: Bothacker-Mutant 1446 | -8/Garrison | Triggered checkpoint 1556 | -8/Garrison | Triggered checkpoint 1647 | -8/Garrison | Garrison Relay disabled 1716 | -8/Garrison | Discovered new exit (range 10) 1757 | -8/Garrison | Entered Materials 1757 | -8/Materials | Accompanied by 1 ally 1904 | -8/Materials | Garrison activated, responded to threat 2016 | -8/Materials | Identified exit to Garrison 2016 | -8/Materials | Entered Garrison 2036 | -8/Garrison | Triggered checkpoint 2090 | -8/Garrison | Garrison Relay disabled 2157 | -8/Garrison | Build established: Mutant 2234 | -8/Garrison | Lost 3 parts (1n2w) 2361 | -8/Garrison | Discovered new exit (range 14) 2426 | -8/Garrison | Triggered checkpoint 2476 | -8/Garrison | Core integrity fell below 50% 2621 | -8/Garrison | Discovered new exit (range 12) 2647 | -8/Garrison | Expanded RIF knowledge: Structural Interface 2689 | -8/Garrison | Entered Factory 2689 | -7/Factory | Evolved 2 slots: Utility x2 3068 | -7/Factory | Discovered new exit (range 7) 3283 | -7/Factory | Lost 3 parts (3u) 3306 | -7/Factory | Found Prototype Launcher 3334 | -7/Factory | Build established: Bothacker-Mutant 3440 | -7/Factory | Fabricated Hvy. Rocket Launcher (x1) 3463 | -7/Factory | Discovered new exit (range 109) 3505 | -7/Factory | Cargo convoy interrupted 3556 | -7/Factory | Identified Rocket Array 3633 | -7/Factory | Found Scatter Rocket Array 3634 | -7/Factory | Lost 5 parts (2n1u2w) 3637 | -7/Factory | Found Scatter Rocket Array 3874 | -7/Factory | Identified exit to Garrison 3874 | -7/Factory | Entered Garrison 3914 | -7/Garrison | Triggered checkpoint 4116 | -7/Garrison | Triggered checkpoint 4137 | -7/Garrison | Lost 4 parts (1p1n2u) 4316 | -7/Garrison | Triggered checkpoint 4332 | -7/Garrison | Core integrity fell below 50% 4382 | -7/Garrison | Garrison Relay disabled 4437 | -7/Garrison | Discovered new exit (range 14) 4493 | -7/Garrison | Expanded RIF knowledge: Signal Jamming 4591 | -7/Garrison | Triggered checkpoint 4694 | -7/Garrison | Triggered checkpoint 4847 | -7/Garrison | Discovered new exit (range 8) 4928 | -7/Garrison | Triggered checkpoint 5041 | -7/Garrison | Garrison Relay disabled 5200 | -7/Garrison | Discovered new exit (range 8) 5248 | -7/Garrison | Triggered checkpoint 5338 | -7/Garrison | Garrison Relay disabled 5564 | -7/Garrison | Entered Factory 5564 | -7/Factory | Accompanied by 3 allies 6142 | -7/Factory | Discovered new exit (range 15) 6295 | -7/Factory | Garrison activated, responded to threat 6364 | -7/Factory | Identified exit to Garrison 6364 | -7/Factory | Entered Garrison 6412 | -7/Garrison | Triggered checkpoint 6529 | -7/Garrison | Garrison Relay disabled 6762 | -7/Garrison | Triggered checkpoint 6811 | -7/Garrison | Discovered new exit (range 8) 6866 | -7/Garrison | Triggered checkpoint 7127 | -7/Garrison | System corruption reached 10% 7169 | -7/Garrison | Garrison Relay disabled 7238 | -7/Garrison | Triggered checkpoint 7270 | -7/Garrison | Core integrity fell below 20% 7372 | -7/Garrison | Discovered new exit (range 8) 7414 | -7/Garrison | Triggered checkpoint 7510 | -7/Garrison | Garrison Relay disabled 7587 | -7/Garrison | Triggered checkpoint 7673 | -7/Garrison | Discovered new exit (range 13) 7696 | -7/Garrison | Expanded RIF knowledge: Robot Detection 7701 | -7/Garrison | Entered Factory 7701 | -6/Factory | Accompanied by 1 ally 7701 | -6/Factory | Evolved 2 slots: Utility x2 7993 | -6/Factory | Build established: Botlord-Mutant 8199 | -6/Factory | Discovered new exit (range 16) 8275 | -6/Factory | Garrison activated, responded to threat 8446 | -6/Factory | Identified exit to Garrison 8446 | -6/Factory | Entered Garrison 8510 | -6/Garrison | Triggered checkpoint 8612 | -6/Garrison | Garrison Relay disabled 8670 | -6/Garrison | Triggered checkpoint 8842 | -6/Garrison | Triggered checkpoint 8885 | -6/Garrison | Spotted B-75 Beast 8951 | -6/Garrison | Destroyed B-75 Beast 8993 | -6/Garrison | Triggered checkpoint 9015 | -6/Garrison | Triggered checkpoint 9112 | -6/Garrison | Lost 5 parts (2p1u2w) 9365 | -6/Garrison | Triggered checkpoint 9424 | -6/Garrison | Garrison Relay disabled 9466 | -6/Garrison | Discovered new exit (range 4) 9578 | -6/Garrison | Discovered new exit (range 8) 9630 | -6/Garrison | Expanded RIF knowledge: Autoassimilate 9675 | -6/Garrison | Triggered checkpoint 9710 | -6/Garrison | Garrison Relay disabled 9808 | -6/Garrison | Entered Factory 9808 | -6/Factory | Accompanied by 3 allies 10158 | -6/Factory | First assault squad dispatched 10388 | -6/Factory | Cargo convoy interrupted 10403 | -6/Factory | Core integrity fell below 50% 10435 | -6/Factory | Destroyed 8 combat bots 10444 | -6/Factory | Lost 5 parts (1p1n2u1w) 10714 | -6/Factory | Discovered new exit (range 7) 10765 | -6/Factory | Entered Lower Caves 10849 | -6/Lower Caves | Learned location of Zion (-6) 11113 | -6/Lower Caves | Discovered new exit (range 14) 11133 | -6/Lower Caves | Entered another Lower Caves area 11765 | -6/Lower Caves | Learned 4 Factory zone layouts 11787 | -6/Lower Caves | Discovered new exit (range 8) 11795 | -6/Lower Caves | Entered Zion 11899 | -6/Zion | System corruption cleaned by Quarantine Array 11905 | -6/Zion | RIF detected upon attempting to enter Zion 11905 | -6/Zion | Attacked by Zionites 11905 | -6/Zion | Spotted 8L-6DS(B) 11905 | -6/Zion | Spotted WO-3MT(B) 11927 | -6/Zion | Discovered new exit (range 14) 11946 | -6/Zion | Entered Proximity Caves 12029 | -5/Proximity Caves | Spotted B-75 Beast 12423 | -5/Proximity Caves | Discovered new exit (range 17) 12518 | -5/Proximity Caves | Entered Factory 12518 | -5/Factory | Accompanied by 2 allies 12518 | -5/Factory | Evolved 2 slots: Utility x2 12519 | -5/Factory | Identified exit to Factory 12772 | -5/Factory | Discovered new exit (range 20) 12864 | -5/Factory | Fabricated Remote Datajack? 12979 | -5/Factory | Identified exit to Garrison 12979 | -5/Factory | Entered Garrison 12979 | -5/Garrison | Accompanied by 1 ally 13016 | -5/Garrison | Triggered checkpoint 13158 | -5/Garrison | Spotted B-75 Beast 13187 | -5/Garrison | Triggered checkpoint 13190 | -5/Garrison | Triggered checkpoint 13243 | -5/Garrison | Lost 3 parts (1n1u1w) 13366 | -5/Garrison | Garrison Relay disabled 13564 | -5/Garrison | Destroyed B-75 Beast 13741 | -5/Garrison | Triggered checkpoint 13815 | -5/Garrison | Triggered checkpoint 13914 | -5/Garrison | Triggered checkpoint 13938 | -5/Garrison | Garrison Relay disabled 14061 | -5/Garrison | Discovered exit to Factory (range 19) 14323 | -5/Garrison | Discovered exit to Factory (range 8) 14390 | -5/Garrison | Triggered checkpoint 14503 | -5/Garrison | Garrison Relay disabled 14929 | -5/Garrison | Triggered checkpoint 15023 | -5/Garrison | Discovered exit to Factory (range 17) 15056 | -5/Garrison | Expanded RIF knowledge: Coupler Efficiency 15138 | -5/Garrison | Triggered checkpoint 15181 | -5/Garrison | Garrison Relay disabled 15548 | -5/Garrison | Entered Factory 15548 | -4/Factory | Accompanied by 11 allies 15548 | -4/Factory | Evolved 2 slots: Utility x2 16097 | -4/Factory | Fabricated Remote Datajack? 16232 | -4/Factory | Cargo convoy interrupted 16263 | -4/Factory | P-70 Sage assimilated allied Virus 6a 16269 | -4/Factory | P-70 Sage assimilated allied Soldier 6e 16584 | -4/Factory | First assault squad dispatched 16665 | -4/Factory | P-70 Sage assimilated allied Sentinel 6d 16672 | -4/Factory | Found Prototype Slashing Weapon 16672 | -4/Factory | Identified Molecular Scythe 16834 | -4/Factory | Discovered new exit (range 15) 16862 | -4/Factory | Lost 3 parts (2u1w) 16904 | -4/Factory | Entered Extension 16904 | -4/Extension | Accompanied by 3 allies 16995 | -4/Extension | Rescued a captive Derelict 16996 | -4/Extension | Rescued a captive Derelict 17079 | -4/Extension | Lost 7 parts (1n5u1w) 17175 | -4/Extension | Rescued A7 17404 | -4/Extension | First assault squad dispatched 17473 | -4/Extension | Rescued a captive Derelict 17475 | -4/Extension | Rescued a captive Derelict 17812 | -4/Extension | Spotted B-86 Titan 17824 | -4/Extension | Spotted B-86 Titan 17831 | -4/Extension | Assimilated Titan 7a with formatsys_high 17835 | -4/Extension | Assimilated Titan 7b with formatsys_high 18200 | -4/Extension | Discovered new exit (range 20) 18200 | -4/Extension | Discovered new exit (range 20) 18208 | -4/Extension | Disrupted transfer network 18243 | -4/Extension | Entered Cetus 18243 | -4/Cetus | Accompanied by 15 allies (A7) 18248 | -4/Cetus | Acquired a Cetus Manufacturing Module code from A7 18263 | -4/Cetus | Spotted Cetus Guard 18263 | -4/Cetus | Spotted Cetus Guard 18267 | -4/Cetus | Spotted Cetus Guard 18269 | -4/Cetus | Spotted Cetus Guard 18274 | -4/Cetus | Allies destroyed Cetus Guard 18276 | -4/Cetus | Allies destroyed Cetus Guard 18281 | -4/Cetus | Allies destroyed Cetus Guard 18282 | -4/Cetus | Allies destroyed Cetus Guard 18320 | -4/Cetus | Cetus Manufacturing Module disabled 18339 | -4/Cetus | Found Prototype Protection 18339 | -4/Cetus | Identified Med. Regenerative Plating 18394 | -4/Cetus | Failed to start Cetus Manufacturing Module 18501 | -4/Cetus | Discovered new exit (range 20) 18663 | -4/Cetus | Discovered new exit (range 19) 18717 | -4/Cetus | Entered Archives 18717 | -4/Archives | Accompanied by 1 ally (A7) 18871 | -4/Archives | Core integrity fell below 50% 18905 | -4/Archives | Discovered new exit (range 17) 18930 | -4/Archives | Discovered new exit (range 19) 18939 | -4/Archives | Discovered new exit (range 19) 18947 | -4/Archives | Unable to access archive contents 19058 | -4/Archives | Unable to access archive contents 19226 | -4/Archives | Entered Hub_04(d) 19441 | -4/Hub_04(d) | Lost 5 parts (1p1n3u) 19537 | -4/Hub_04(d) | Identified exit to Research 19665 | -4/Hub_04(d) | Entered Research 19665 | -3/Research | Accompanied by 1 ally 19665 | -3/Research | Evolved 2 slots: Propulsion x2 19666 | -3/Research | Identified exit to Armory 19909 | -3/Research | Garrison activated, responded to threat 20181 | -3/Research | Found Prototype Protection 20181 | -3/Research | Identified Centrium Heavy Armor Plating 20184 | -3/Research | Found Centrium Heavy Armor Plating 20244 | -3/Research | Lost 10 parts (2n4u4w) 20307 | -3/Research | Lost 3 parts (1p1n1w) 20415 | -3/Research | First assault squad dispatched 20548 | -3/Research | Core integrity fell below 50% 20640 | -3/Research | Lost 8 parts (2p1n2u3w) 20778 | -3/Research | Spotted B-86 Titan 20806 | -3/Research | Found Enh. Force Lance 20815 | -3/Research | Crushed by falling debris 20815 | -3/Research | System corruption reached 10% 20833 | -3/Research | Core integrity fell below 20% 20836 | -3/Research | Discovered new exit (range 17) 20846 | -3/Research | Identified exit to Garrison 20846 | -3/Research | Entered Garrison 20849 | -3/Garrison | Lost 6 parts (1p3u2w) 20974 | -3/Garrison | Triggered checkpoint 20974 | -3/Garrison | Spotted B-86 Titan 20982 | -3/Garrison | Triggered checkpoint 21086 | -3/Garrison | Destroyed by G-67 Veteran with Electrolaser Last Messages --------------- 21076_ Jacked B-74 Champion... 21076_ Relay Coupler [Swarmer] destroyed. 21077_ Penetrated by Slug. 21077_ Critical hit (Burn: +37). 21078_ Jacked B-74 Champion... >>formatsys_high Rerouting network defenses. Erasing system data. Installing primary routines, ETC: 6. 21080_ Reactivated Champion 8a. 21080_ G-67 Veteran knocked back. 21081_ Jacked B-74 Champion... >>formatsys_high Rerouting network defenses. Erasing system data. Installing primary routines, ETC: 6. 21083_ Reactivated Champion 8b. 21083_ Champion 8a suffers critical hit (Burn). 21084_ Champion 8a destroyed. 21085_ Acquired 90 matter. Map ----- +----------------------------------------------------+ | ?????????????????????????????????????????????????? | | ?????????????????????????????????????????????????? | | ?????????????????????????????????????????????????? | | ?????????????????????????????????????????????????? | | ?????????????????????????????????????????????????? | | ?????????????????????????????????????????????????? | | ??????????????????????+##????????????????????????? | | ?????????????????????# ????????????????????????? | | ?????????????????????# ????????????????????????? | | ?????????????????????# ????????????????????????? | | ?????????????????????# ????????????????????????? | | ?????????????????????# ????????????????????????? | | ?????????????????????# ????????????????????????? | | ?????????????????????# ????????????????????????? | | ?????????????????????# +???????????????????????? | | ???????????????####??# #???????????????????????? | | ???????????????# == ?# #???????????????????????? | | ?????????###++## ? ## #???????????????????????? | | ????????? ? #???????????????????????? | | ??????????? ? s +?????????##????????????? | | ????????????? ?? +????????? #######?????? | | ??????????# ???# ?#s #????##### #?????? | | ????????### ## ## s###?## # ##????? | | ????????# ! #?? # # #????? | | ????????# % / #?## # # # #????? | | ????????# l =@g#?? ### #????? | | ????????# b #??? # # ##????? | | ????????### ##^ ##Yg ###???? ## # # # #?????? | | ??????????# ## ## ######## ## ## #??????? | | ????? # # #??????? | | ????? ## #??????? | | ????? ####+##### # # #??????? | | ??????######+### ###+##??# ##### # #???????? | | ???????????????# ????????# ## ## # #???????? | | ???????????????####?????????# ### ## #???????? | | ????????????????????????????# ##### ######??????? | | ????????????????????????????# #??????? | | ????????????????????????????####### #### #??????? | | ??????????????????????????????????# #??# #??????? | | ??????????????????????????????????# ####+######## | | ??????????????????????????????????# # | | ????????????????????????????Y###### # | | ?????????????????????????????+ ######### # | | ?????????????????????????????# #####+#???????# # | | ?????????????????????????????????????????????##### | | ?????????????????????????????????????????????????? | | ?????????????????????????????????????????????????? | | ?????????????????????????????????????????????????? | | ?????????????????????????????????????????????????? | | ?????????????????????????????????????????????????? | +----------------------------------------------------+ Best States ------------- Heat Dissipation 50 Energy Generation 25 Energy Capacity 350 Matter Stores 700 Matter Capacity 700 Sight Range 20 Terrain Scan Density 10 Additional Mass Support 9 Armor Coverage 750 Resistance: TH 15 Core Shielding 30 Power Shielding 66 Melee Speed Boost 30 Evasion (%) 55 Targeting Accuracy 6 Melee Accuracy 18 Recoil Reduction 4 Particle Charging 20 Offensive Hacking 36 Defensive Hacking 36 Relay Coupler Types 224 Relay Coupler Value 7 Item Schematics ----------------- Hcp. Storage Unit | -10/Materials | Hacked Remote Datajack | -5/Factory | Scanalyzed Centrium Wheel | -3/Research | Scanalyzed Robot Schematics ------------------ None Fabricated ------------ Hvy. Rocket Launcher | x1 | -7/Factory | Preloaded Remote Datajack | x1 | -5/Factory Remote Datajack | x1 | -4/Factory Alien Tech Used ----------------- None Achievements -------------- Beloved Pwned Challenges ------------ None Game ------ Seed GammaChipSword Manual? 0 Play Time 03:24:03 Cumulative 150.0 hours Start 2021.09.19 @ 18:52:29 End 2021.09.20 @ 17:02:21 Sessions 5 Manual Loads 0 Difficulty Rogue Special Mode None Game No. 91 Rogue 91 Adventurer 0 Explorer 0 Win Type - Total 1 Types 1/0/0/0/0/0/0/0/0 Lore% 54 Gallery% 71 Achievement% 49 Wizard Run 0 Options --------- ASCII 0 Keyboard 1 Movement Numpad Keybinds 0 Fullscreen 1 Font 18/SmallcapsGlow Map View 76x50 Tactical HUD 1 Map Filters NONE Filters NONE Steam 1 RUN: 3ca2db79-169c-4f4d-9f48-e80de1552ed5